fUST/lending_fUST_20251231
["ID","MTS","AMOUNT","RATE_DAILY","PERIOD"]
[400120618,1767135051417,-165.69,0.000264,7]
[400120619,1767135051426,-726.0,0.00026489,3]
[400120620,1767135051436,-726.0,0.00026491,3]
[400120621,1767135051445,-500.0,0.00026545,7]
[400120622,1767135051454,-1205.0,0.00026575,2]
[400120623,1767135051463,-243.1,0.00026585,2]
[400120624,1767135051473,-800.0,0.00026611,2]
[400120625,1767135051483,-800.0,0.00026662,2]
[400120626,1767135051491,-300.35112488,0.00026675,16]
[400120627,1767135051500,-1205.0,0.0002668,7]
[400120628,1767135051510,-1205.0,0.00026744,2]
[400120629,1767135051519,-1205.0,0.00026778,2]
[400120630,1767135051528,-533.102125,0.00026831,2]
[400120631,1767135051538,-500.0,0.00026856,7]
[400120632,1767135051547,-2000.0,0.00026873,7]
[400120633,1767135051556,-800.0,0.00026888,2]
[400120634,1767135051566,-1267.74428336,0.00027,2]
[400120635,1767135051576,-183.0,0.00027,7]
[400120636,1767135051585,-167.0,0.00027,7]
[400120637,1767135051595,-7669.70788871,0.00027005,2]
[400120638,1767135051604,-726.0,0.00027023,3]
[400120639,1767135051614,-243.1,0.00027062,2]
[400120640,1767135051623,-726.0,0.0002708,3]
[400120641,1767135051632,-726.0,0.0002708,3]
[400120642,1767135051642,-1205.0,0.00027085,2]
[400120643,1767135051651,-8981.25,0.000271,2]
[400120644,1767135051660,-288.35,0.000271,7]
[400120645,1767135051670,-205.882,0.00027167,15]
[400120646,1767135051679,-408.0,0.000272,2]
[400120647,1767135051688,-726.0,0.00027211,3]
[400120648,1767135051697,-5000.0,0.00027215,15]
[400120649,1767135051718,-1205.0,0.00027335,2]
[400120650,1767135051735,-726.0,0.00027343,3]
[400120651,1767135051753,-600.0,0.0002736,2]
[400120652,1767135051772,-584.15670251,0.00027397,2]
[400120653,1767135051792,-299.0,0.00027397,2]
[400120654,1767135051808,-299.0,0.00027397,2]
[400120655,1767135051823,-299.0,0.00027397,2]
[400120656,1767135051841,-299.0,0.00027397,2]
[400120657,1767135051854,-299.0,0.00027397,2]
[400120658,1767135051870,-299.0,0.00027397,2]
[400120659,1767135051887,-299.0,0.00027397,2]
[400120660,1767135051906,-299.0,0.00027397,2]
[400120661,1767135051918,-299.0,0.00027397,2]
[400120662,1767135051934,-299.0,0.00027397,2]
[400120663,1767135051950,-299.0,0.00027397,2]
[400120664,1767135051963,-299.0,0.00027397,2]
[400120665,1767135051977,-299.0,0.00027397,2]
[400120666,1767135051991,-299.0,0.00027397,2]
[400120667,1767135052005,-299.0,0.00027397,2]
[400120668,1767135052019,-299.0,0.00027397,2]
[400120669,1767135052033,-299.0,0.00027397,2]
[400120670,1767135052047,-299.0,0.00027397,2]
[400120671,1767135052060,-299.0,0.00027397,2]
[400120672,1767135052074,-299.0,0.00027397,2]
[400120673,1767135052087,-299.0,0.00027397,2]
[400120674,1767135052102,-299.0,0.00027397,2]
[400120675,1767135052115,-299.0,0.00027397,2]
[400120676,1767135052129,-299.0,0.00027397,2]
[400120677,1767135052144,-299.0,0.00027397,2]
[400120678,1767135052157,-299.0,0.00027397,2]
[400120679,1767135052171,-299.0,0.00027397,2]
[400120680,1767135052185,-299.0,0.00027397,2]
[400120681,1767135052198,-299.0,0.00027397,2]
[400120682,1767135052211,-299.0,0.00027397,2]
[400120683,1767135052225,-299.0,0.00027397,2]
[400120684,1767135052239,-299.0,0.00027397,2]
[400120685,1767135052253,-151.0,0.00027397,7]
[400120686,1767135052268,-151.0,0.00027397,7]
[400120687,1767135052281,-151.0,0.00027397,7]
[400120688,1767135052295,-151.0,0.00027397,7]
[400120689,1767135052310,-151.461106,0.00027397,7]
[400120690,1767135052323,-151.0,0.00027397,7]
[400120691,1767135052337,-151.0,0.00027397,7]
[400120692,1767135052351,-151.0,0.00027397,7]
[400120693,1767135052364,-151.0,0.00027397,7]
[400120694,1767135052378,-255.40502,0.00027397,7]
[400120695,1767135052393,-151.424275,0.00027397,7]
[400120696,1767135052405,-151.0,0.00027397,7]
[400120697,1767135052415,-151.0,0.00027397,7]
[400120698,1767135052424,-151.0,0.00027397,7]
[400120699,1767135052433,-151.0,0.00027397,7]
[400120700,1767135052555,-151.0,0.00027397,7]
[400120701,1767135052571,-151.0,0.00027397,7]
[400120702,1767135052580,-151.0,0.00027397,7]
[400120703,1767135052590,-151.0,0.00027397,7]
[400120704,1767135052600,-151.0,0.00027397,7]
[400120705,1767135052609,-151.0,0.00027397,7]
[400120706,1767135052620,-151.0,0.00027397,7]
[400120707,1767135052630,-151.0,0.00027397,7]
[400120708,1767135052639,-151.0,0.00027397,7]
[400120709,1767135052649,-151.0,0.00027397,7]
[400120710,1767135052659,-151.0,0.00027397,7]
[400120711,1767135052668,-151.0,0.00027397,7]
[400120712,1767135052677,-151.0,0.00027397,7]
[400120713,1767135052687,-151.0,0.00027397,7]
[400120714,1767135052696,-151.0,0.00027397,7]
[400120715,1767135052705,-151.0,0.00027397,7]
[400120716,1767135052715,-151.0,0.00027397,7]
[400120717,1767135052725,-151.0,0.00027397,7]
[400120718,1767135052734,-151.0,0.00027397,7]
[400120719,1767135052744,-151.0,0.00027397,7]
[400120720,1767135052753,-151.0,0.00027397,7]
[400120721,1767135052763,-151.0,0.00027397,7]
[400120722,1767135052772,-151.0,0.00027397,7]
[400120723,1767135052782,-151.0,0.00027397,7]
[400120724,1767135052791,-151.0,0.00027397,7]
[400120725,1767135052800,-154.653823,0.00027397,7]
[400120726,1767135052809,-151.0,0.00027397,7]
[400120727,1767135052819,-182.655177,0.00027397,7]
[400120728,1767135052829,-151.0,0.00027397,7]
[400120729,1767135052839,-254.98888,0.00027397,7]
[400120730,1767135052849,-590.229866,0.00027397,7]
[400120731,1767135052858,-590.229866,0.00027397,7]
[400120732,1767135052868,-590.229866,0.00027397,7]
[400120733,1767135052878,-590.229866,0.00027397,7]
[400120734,1767135052887,-590.229866,0.00027397,7]
[400120735,1767135052897,-590.229866,0.00027397,7]
[400120736,1767135052906,-590.229866,0.00027397,7]
[400120737,1767135052916,-590.229866,0.00027397,7]
[400120738,1767135052925,-151.0,0.00027397,7]
[400120739,1767135052934,-151.0,0.00027397,7]
[400120740,1767135052943,-151.0,0.00027397,7]
[400120741,1767135052952,-151.0,0.00027397,7]
[400120742,1767135052962,-151.0,0.00027397,7]
[400120743,1767135052971,-151.0,0.00027397,7]
[400120744,1767135052980,-151.0,0.00027397,7]
[400120745,1767135052989,-233.975521,0.00027397,7]
[400120746,1767135052998,-151.0,0.00027397,7]
[400120747,1767135053008,-151.0,0.00027397,7]
[400120748,1767135053020,-151.0,0.00027397,7]
[400120749,1767135053029,-151.0,0.00027397,7]
[400120750,1767135053038,-151.0,0.00027397,7]
[400120751,1767135053047,-151.0,0.00027397,7]
[400120752,1767135053057,-151.0,0.00027397,7]
[400120753,1767135053066,-206.345452,0.00027397,7]
[400120754,1767135053076,-206.345452,0.00027397,7]
[400120755,1767135053085,-151.0,0.00027397,7]
[400120756,1767135053095,-206.345452,0.00027397,7]
[400120757,1767135053104,-206.345452,0.00027397,7]
[400120758,1767135053113,-206.345452,0.00027397,7]
[400120759,1767135053123,-206.345452,0.00027397,7]
[400120760,1767135053132,-206.345452,0.00027397,7]
[400120761,1767135053141,-206.345452,0.00027397,7]
[400120762,1767135053151,-246.486511,0.00027397,7]
[400120763,1767135053161,-246.486511,0.00027397,7]
[400120764,1767135053171,-246.486511,0.00027397,7]
[400120765,1767135053181,-246.486511,0.00027397,7]
[400120766,1767135053191,-246.486511,0.00027397,7]
[400120767,1767135053200,-246.486511,0.00027397,7]
[400120768,1767135053210,-246.486511,0.00027397,7]
[400120769,1767135053220,-246.486511,0.00027397,7]
[400120770,1767135053230,-152.177869,0.00027397,7]
[400120771,1767135053240,-157.217359,0.00027397,7]
[400120772,1767135053249,-157.217359,0.00027397,7]
[400120773,1767135053259,-151.0,0.00027397,7]
[400120774,1767135053269,-151.0,0.00027397,7]
[400120775,1767135053278,-157.217359,0.00027397,7]
[400120776,1767135053287,-157.217359,0.00027397,7]
[400120777,1767135053297,-157.217359,0.00027397,7]
[400120778,1767135053306,-157.217359,0.00027397,7]
[400120779,1767135053316,-157.217359,0.00027397,7]
[400120780,1767135053326,-157.217359,0.00027397,7]
[400120781,1767135053336,-151.0,0.00027397,7]
[400120782,1767135053346,-151.0,0.00027397,7]
[400120783,1767135053356,-151.0,0.00027397,7]
[400120784,1767135053365,-151.0,0.00027397,7]
[400120785,1767135053375,-151.0,0.00027397,7]
[400120786,1767135053385,-151.0,0.00027397,7]
[400120787,1767135053395,-151.0,0.00027397,7]
[400120788,1767135053405,-151.0,0.00027397,7]
[400120789,1767135053415,-151.0,0.00027397,7]
[400120790,1767135053425,-151.0,0.00027397,7]
[400120791,1767135053435,-151.0,0.00027397,7]
[400120792,1767135053446,-151.0,0.00027397,7]
[400120793,1767135053456,-151.0,0.00027397,7]
[400120794,1767135053466,-151.0,0.00027397,7]
[400120795,1767135053476,-264.153595,0.00027397,7]
[400120796,1767135053486,-151.0,0.00027397,7]
[400120797,1767135053495,-152.251076,0.00027397,7]
[400120798,1767135053505,-151.0,0.00027397,7]
[400120799,1767135053514,-151.0,0.00027397,7]
[400120800,1767135053524,-151.0,0.00027397,7]
[400120801,1767135053534,-151.0,0.00027397,7]
[400120802,1767135053543,-151.0,0.00027397,7]
[400120803,1767135053553,-205.896426,0.00027397,7]
[400120804,1767135053563,-205.896426,0.00027397,7]
[400120805,1767135053573,-167.845049,0.00027397,7]
[400120806,1767135053583,-205.896426,0.00027397,7]
[400120807,1767135053593,-167.845049,0.00027397,7]
[400120808,1767135053603,-167.845049,0.00027397,7]
[400120809,1767135053613,-205.896426,0.00027397,7]
[400120810,1767135053623,-205.896426,0.00027397,7]
[400120811,1767135053633,-167.845049,0.00027397,7]
[400120812,1767135053643,-205.896426,0.00027397,7]
[400120813,1767135053653,-167.845049,0.00027397,7]
[400120814,1767135053663,-167.845049,0.00027397,7]
[400120815,1767135053673,-205.896426,0.00027397,7]
[400120816,1767135053683,-205.896426,0.00027397,7]
[400120817,1767135053694,-167.845049,0.00027397,7]
[400120818,1767135053703,-205.896426,0.00027397,7]
[400120819,1767135053713,-167.845049,0.00027397,7]
[400120820,1767135053723,-167.845049,0.00027397,7]
[400120821,1767135053734,-205.896426,0.00027397,7]
[400120822,1767135053744,-184.789263,0.00027397,7]
[400120823,1767135053754,-205.896426,0.00027397,7]
[400120824,1767135053764,-167.845049,0.00027397,7]
[400120825,1767135053775,-205.896426,0.00027397,7]
[400120826,1767135053785,-167.845049,0.00027397,7]
[400120827,1767135053795,-167.845049,0.00027397,7]
[400120828,1767135053805,-155.465049,0.00027397,7]
[400120829,1767135053815,-151.0,0.00027397,7]
[400120830,1767135053825,-252.993084,0.00027397,7]
[400120831,1767135053834,-151.0,0.00027397,7]
[400120832,1767135053844,-151.0,0.00027397,7]
[400120833,1767135053853,-151.0,0.00027397,7]
[400120834,1767135053863,-151.0,0.00027397,7]
[400120835,1767135053872,-151.0,0.00027397,7]
[400120836,1767135053882,-151.000022,0.00027397,7]
[400120837,1767135053891,-151.0,0.00027397,7]
[400120838,1767135053901,-151.0,0.00027397,7]
[400120839,1767135053911,-151.0,0.00027397,7]
[400120840,1767135053932,-151.0,0.00027397,7]
[400120841,1767135053944,-151.0,0.00027397,7]
[400120842,1767135053955,-151.0,0.00027397,7]
[400120843,1767135053965,-151.0,0.00027397,7]
[400120844,1767135053975,-151.0,0.00027397,7]
[400120845,1767135053985,-279.781058,0.00027397,7]
[400120846,1767135053995,-151.0,0.00027397,7]
[400120847,1767135054005,-151.0,0.00027397,7]
[400120848,1767135054015,-151.0,0.00027397,7]
[400120849,1767135054027,-160.0,0.000274,3]
[400120850,1767135054037,-726.0,0.00027415,3]
[400120851,1767135054047,-726.0,0.00027451,3]
[400120852,1767135054058,-1215.955606,0.0002746,5]
[400120853,1767135054070,-151.0,0.00027462,3]
[400120854,1767135054080,-151.0,0.00027462,3]
[400120855,1767135054090,-161.5212068,0.00027462,3]
[400120856,1767135054101,-38433.5440025,0.00027476,2]
[400120857,1767135054111,-1316.1681473,0.00027476,2]
[400120858,1767135054122,-1000.0,0.0002748,5]
[400120859,1767135054132,-1000.0,0.000275,5]
[400120860,1767135054143,-1000.0,0.0002752,5]
[400120861,1767135054153,-243.1,0.00027539,2]
[400120862,1767135054163,-1000.0,0.0002754,5]
[400120863,1767135054173,-1000.0,0.0002756,5]
[400120864,1767135054183,-1000.0,0.0002758,5]
[400120865,1767135054193,-1000.0,0.000276,5]
[400120866,1767135054203,-1000.0,0.0002762,5]
[400120867,1767135054214,-2769.70299228,0.00027638,2]
[400120868,1767135054224,-1000.0,0.0002764,5]
[400120869,1767135054235,-600.0,0.00027645,2]
[400120870,1767135054245,-1000.0,0.0002766,5]
[400120871,1767135054255,-5000.0,0.0002767,14]
[400120872,1767135054265,-167.0,0.00027671,14]
[400120873,1767135054275,-726.0,0.00027679,3]
[400120874,1767135054284,-1000.0,0.0002768,5]
[400120875,1767135054296,-1202.659268,0.0002768,5]
[400120876,1767135054305,-5000.0,0.00027685,3]
[400120877,1767135054316,-1552.86,0.000277,14]
[400120878,1767135054326,-1000.0,0.000277,5]
[400120879,1767135054336,-1000.0,0.000277,5]
[400120880,1767135054346,-250.0,0.000277,10]
[400120881,1767135054474,-597589.89832664,0.0002772,2]
[400120882,1767135054487,-13544.08995535,0.00027723,2]
[400120883,1767135054497,-726.0,0.00027735,3]
[400120884,1767135054506,-726.0,0.00027735,3]
[400120885,1767135054516,-211.0809318,0.00027747,2]
[400120886,1767135054525,-168.973709,0.00027747,2]
[400120887,1767135054535,-2297.70390823,0.00027766,2]
[400120888,1767135054544,-5000.0,0.00027796,7]
[400120889,1767135054554,-250.0,0.000278,10]
[400120890,1767135054564,-250.0,0.000279,10]
[400120891,1767135054573,-300.35112488,0.00027911,18]
[400120892,1767135054583,-600.0,0.0002793,2]
[400120893,1767135054592,-4202.57820351,0.00027944,5]
[400120894,1767135054601,-153.0,0.00027945,30]
[400120895,1767135054611,-153.0,0.00027945,30]
[400120896,1767135054620,-153.0,0.00027945,30]
[400120897,1767135054629,-153.0,0.00027945,30]
[400120898,1767135054638,-153.0,0.00027945,30]
[400120899,1767135054648,-153.0,0.00027973,30]
[400120900,1767135054657,-153.0,0.00027973,30]
[400120901,1767135054666,-153.0,0.00027973,30]
[400120902,1767135054676,-153.0,0.00027973,30]
[400120903,1767135054685,-153.0,0.00027973,30]
[400120904,1767135054695,-153.0,0.00027973,30]
[400120905,1767135054705,-153.0,0.00027973,30]
[400120906,1767135054714,-5000.0,0.00027999,5]
[400120907,1767135054724,-5000.0,0.00027999,8]
[400120908,1767135054733,-151.0,0.00027999,5]
[400120909,1767135054746,-181.08010149,0.00027999,5]
[400120910,1767135054756,-151.0,0.00027999,5]
[400120911,1767135054765,-161.92789551,0.00027999,5]
[400120912,1767135054774,-151.0,0.00027999,5]
[400120913,1767135054784,-151.0,0.00027999,5]
[400120914,1767135054793,-151.0,0.00027999,5]
[400120915,1767135054803,-250.0,0.00027999,5]
[400120916,1767135054812,-154.51578537,0.00027999,5]
[400120917,1767135054822,-250.0,0.00027999,5]
[400120918,1767135054831,-151.0,0.00027999,5]
[400120919,1767135054840,-152.38386934,0.00027999,5]
[400120920,1767135054850,-2398.4119403,0.00027999,5]
[400120921,1767135054860,-2487.15318209,0.00027999,5]
[400120922,1767135054869,-2579.17784983,0.00027999,5]
[400120923,1767135054879,-1786.62369794,0.00027999,5]
[400120924,1767135054889,-496.47127164,0.00027999,5]
[400120925,1767135054898,-514.84070869,0.00027999,5]
[400120926,1767135054907,-533.88981491,0.00027999,5]
[400120927,1767135054915,-500.0,0.00027999,5]
[400120928,1767135054923,-553.64373807,0.00027999,5]
[400120929,1767135054932,-574.12855637,0.00027999,5]
[400120930,1767135054941,-595.37131296,0.00027999,5]
[400120931,1767135054951,-500.0,0.00027999,5]
[400120932,1767135054960,-617.40005154,0.00027999,5]
[400120933,1767135054969,-500.0,0.00027999,5]
[400120934,1767135054979,-640.24385345,0.00027999,5]
[400120935,1767135054989,-500.0,0.00027999,5]
[400120936,1767135054999,-180.82296278,0.00027999,5]
[400120937,1767135055008,-500.0,0.00027999,5]
[400120938,1767135055017,-500.0,0.00027999,5]
[400120939,1767135055027,-500.0,0.00027999,5]
[400120940,1767135055036,-500.0,0.00027999,5]
[400120941,1767135055046,-500.0,0.00027999,5]
[400120942,1767135055055,-500.0,0.00027999,5]
[400120943,1767135055064,-500.0,0.00027999,5]
[400120944,1767135055073,-500.0,0.00027999,5]
[400120945,1767135055085,-500.0,0.00027999,5]
[400120946,1767135055095,-500.0,0.00027999,5]
[400120947,1767135055104,-500.0,0.00027999,5]
[400120948,1767135055113,-250.0,0.00028,10]
[400120949,1767135055123,-1041.66666667,0.00028,7]
[400120950,1767135055143,-150.0,0.00028,5]
[400120951,1767135055153,-1207.0,0.00028014,7]
[400120952,1767135055163,-243.1,0.00028016,2]
[400120953,1767135055171,-752.6440564,0.00028027,30]
[400120954,1767135055181,-1205.0,0.00028037,2]
[400120955,1767135055190,-5000.0,0.00028081,15]
[400120956,1767135055200,-153.0,0.00028082,30]
[400120957,1767135055209,-153.0,0.00028082,30]
[400120958,1767135055219,-153.0,0.00028082,30]
[400120959,1767135055229,-153.0,0.00028082,30]
[400120960,1767135055239,-10000.0,0.00028089,2]
[400120961,1767135055249,-5000.0,0.00028099,10]
[400120962,1767135055259,-165.69,0.000281,7]
[400120963,1767135055270,-272.501494,0.000281,10]
[400120964,1767135055280,-1207.0,0.00028133,2]
[400120965,1767135055290,-1205.0,0.00028159,2]
[400120966,1767135055300,-2325.06844988,0.00028178,5]
[400120967,1767135055310,-5000.0,0.00028188,2]
[400120968,1767135055319,-1000.0,0.00028189,2]
[400120969,1767135055328,-1000.0,0.00028189,2]
[400120970,1767135055338,-1000.0,0.00028189,2]
[400120971,1767135055348,-1000.0,0.00028189,2]
[400120972,1767135055358,-1000.0,0.00028189,2]
[400120973,1767135055368,-1000.0,0.00028189,2]
[400120974,1767135055377,-1000.0,0.00028189,2]
[400120975,1767135055387,-1000.0,0.00028189,2]
[400120976,1767135055396,-1000.0,0.00028189,2]
[400120977,1767135055406,-1000.0,0.00028189,2]
[400120978,1767135055417,-1000.0,0.00028189,2]
[400120979,1767135055426,-1000.0,0.00028189,2]
[400120980,1767135055435,-1000.0,0.00028189,2]
[400120981,1767135055445,-1003.36208938,0.00028189,2]
[400120982,1767135055455,-151.0,0.00028189,2]
[400120983,1767135055464,-151.0,0.00028189,2]
[400120984,1767135055474,-151.0,0.00028189,2]
[400120985,1767135055483,-151.0,0.00028189,2]
[400120986,1767135055492,-151.0,0.00028189,2]
[400120987,1767135055502,-151.0,0.00028189,2]
[400120988,1767135055511,-151.0,0.00028189,2]
[400120989,1767135055521,-151.0,0.00028189,2]
[400120990,1767135055531,-151.0,0.00028189,2]
[400120991,1767135055540,-151.0,0.00028189,2]
[400120992,1767135055550,-151.0,0.00028189,2]
[400120993,1767135055561,-151.0,0.00028189,2]
[400120994,1767135055571,-151.0,0.00028189,2]
[400120995,1767135055580,-151.0,0.00028189,2]
[400120996,1767135055590,-202.88839681,0.00028189,2]
[400120997,1767135055599,-159.47,0.000282,7]
[400120998,1767135055608,-1294.0,0.00028209,2]
[400120999,1767135055618,-600.0,0.00028215,2]
[400121000,1767135055627,-1294.0,0.00028224,7]
[400121001,1767135055637,-1291.0,0.0002827,2]
[400121002,1767135055647,-288.35,0.000283,7]
[400121003,1767135055656,-1294.0,0.00028303,2]
[400121004,1767135055666,-1205.0,0.0002834,2]
[400121005,1767135055675,-1291.0,0.00028437,2]
[400121006,1767135055684,-153.0,0.00028448,30]
[400121007,1767135055693,-153.0,0.00028448,30]
[400121008,1767135055702,-153.0,0.00028448,30]
[400121009,1767135055712,-153.0,0.00028448,30]
[400121010,1767135055721,-153.0,0.00028448,30]
[400121011,1767135055731,-153.0,0.00028448,30]
[400121012,1767135055740,-336.9214029,0.00028448,30]
[400121013,1767135055750,-153.0,0.00028448,30]
[400121014,1767135055759,-185.19950386,0.00028493,60]
[400121015,1767135055768,-250.0,0.00028493,60]
[400121016,1767135055787,-500.0,0.00028493,60]
[400121017,1767135055798,-205.42464996,0.00028493,60]
[400121018,1767135055808,-500.0,0.00028493,60]
[400121019,1767135055818,-150.0,0.00028493,60]
[400121020,1767135055828,-500.0,0.00028493,60]
[400121021,1767135055838,-500.0,0.00028493,60]
[400121022,1767135055848,-159.63944667,0.00028493,60]
[400121023,1767135055858,-151.66549106,0.00028493,60]
[400121024,1767135055868,-201.05592048,0.00028493,60]
[400121025,1767135055878,-500.0,0.00028493,60]
[400121026,1767135055888,-150.0,0.00028493,60]
[400121027,1767135055898,-151.37234462,0.00028493,60]
[400121028,1767135055908,-243.1,0.00028493,3]
[400121029,1767135055918,-150.0,0.00028493,60]
[400121030,1767135055928,-150.0,0.00028493,2]
[400121031,1767135055938,-218.3259869,0.00028493,60]
[400121032,1767135055948,-142439.41189082,0.000285,7]
[400121033,1767135055958,-86577.76783665,0.000285,7]
[400121034,1767135055967,-151.0,0.000285,7]
[400121035,1767135055977,-151.0,0.000285,7]
[400121036,1767135055988,-155.658401,0.000285,7]
[400121037,1767135055998,-151.0,0.000285,7]
[400121038,1767135056008,-151.0,0.000285,7]
[400121039,1767135056019,-151.0,0.000285,7]
[400121040,1767135056030,-151.0,0.000285,7]
[400121041,1767135056039,-151.0,0.000285,7]
[400121042,1767135056049,-151.0,0.000285,7]
[400121043,1767135056060,-151.0,0.000285,7]
[400121044,1767135056069,-151.0,0.000285,7]
[400121045,1767135056079,-151.0,0.000285,7]
[400121046,1767135056089,-151.0,0.000285,7]
[400121047,1767135056099,-151.0,0.000285,7]
[400121048,1767135056217,-151.0,0.000285,7]
[400121049,1767135056226,-151.0,0.000285,7]
[400121050,1767135056236,-151.0,0.000285,7]
[400121051,1767135056245,-151.0,0.000285,7]
[400121052,1767135056254,-151.0,0.000285,7]
[400121053,1767135056264,-590.229866,0.000285,7]
[400121054,1767135056274,-590.229866,0.000285,7]
[400121055,1767135056283,-590.229866,0.000285,7]
[400121056,1767135056293,-590.229866,0.000285,7]
[400121057,1767135056302,-1978.218114,0.000285,2]
[400121058,1767135056312,-151.0,0.000285,7]
[400121059,1767135056321,-151.0,0.000285,7]
[400121060,1767135056331,-151.0,0.000285,7]
[400121061,1767135056340,-151.0,0.000285,7]
[400121062,1767135056349,-161.480743,0.000285,7]
[400121063,1767135056359,-151.0,0.000285,7]
[400121064,1767135056368,-151.0,0.000285,7]
[400121065,1767135056378,-151.0,0.000285,7]
[400121066,1767135056387,-273.461085,0.000285,7]
[400121067,1767135056398,-273.461085,0.000285,7]
[400121068,1767135056407,-151.0,0.000285,7]
[400121069,1767135056417,-273.461085,0.000285,7]
[400121070,1767135056427,-151.0,0.000285,7]
[400121071,1767135056436,-273.461085,0.000285,7]
[400121072,1767135056445,-151.0,0.000285,7]
[400121073,1767135056455,-151.0,0.000285,7]
[400121074,1767135056465,-205.896426,0.000285,7]
[400121075,1767135056474,-167.845049,0.000285,7]
[400121076,1767135056484,-205.896426,0.000285,7]
[400121077,1767135056494,-167.845049,0.000285,7]
[400121078,1767135056503,-205.896426,0.000285,7]
[400121079,1767135056512,-167.845049,0.000285,7]
[400121080,1767135056521,-205.896426,0.000285,7]
[400121081,1767135056531,-167.845049,0.000285,7]
[400121082,1767135056540,-1500.0,0.000285,2]
[400121083,1767135056550,-151.0,0.000285,7]
[400121084,1767135056559,-151.0,0.000285,7]
[400121085,1767135056569,-151.0,0.000285,7]
[400121086,1767135056583,-948.223993,0.000285,7]
[400121087,1767135056592,-948.223993,0.000285,7]
[400121088,1767135056601,-948.223993,0.000285,7]
[400121089,1767135056610,-948.223993,0.000285,7]
[400121090,1767135056619,-600.0,0.000285,2]
[400121091,1767135056629,-151.0,0.000285,7]
[400121092,1767135056638,-151.0,0.000285,7]
[400121093,1767135056647,-151.0,0.000285,7]
[400121094,1767135056656,-151.0,0.000285,7]
[400121095,1767135056666,-151.0,0.000285,7]
[400121096,1767135056675,-151.0,0.000285,7]
[400121097,1767135056684,-216.254292,0.000285,7]
[400121098,1767135056694,-2000.0,0.00028514,7]
[400121099,1767135056703,-250.0,0.00028548,5]
[400121100,1767135056713,-1000.0,0.00028557,30]
[400121101,1767135056722,-1000.0,0.00028557,30]
[400121102,1767135056731,-579.0,0.00028557,30]
[400121103,1767135056741,-151.0,0.00028557,7]
[400121104,1767135056750,-151.0,0.00028557,7]
[400121105,1767135056759,-151.0,0.00028557,7]
[400121106,1767135056768,-151.0,0.00028557,7]
[400121107,1767135056778,-151.0,0.00028557,7]
[400121108,1767135056787,-154.472401,0.00028557,7]
[400121109,1767135056797,-176.253592,0.00028557,7]
[400121110,1767135056806,-206.345452,0.00028557,7]
[400121111,1767135056816,-206.345452,0.00028557,7]
[400121112,1767135056826,-206.345452,0.00028557,7]
[400121113,1767135056835,-206.345452,0.00028557,7]
[400121114,1767135056845,-246.486511,0.00028557,7]
[400121115,1767135056855,-658.752585,0.00028557,7]
[400121116,1767135056864,-246.486511,0.00028557,7]
[400121117,1767135056873,-658.752585,0.00028557,7]